bitfinex-derivatives/quotes_ETHF0:USTF0_20260204
["timestamp","ask_amount","ask_price","bid_price","bid_amount"]
[1770233097876,0.00411368,2140.5,2139.6,7.37572399]
[1770233098376,0.00411368,2140.5,2139.6,7.60987399]
[1770233099274,0.00411368,2140.5,2139.6,7.37572399]
[1770233099480,7.55756775,2140.5,2139.2,7.85879859]
[1770233099779,7.55756775,2140.5,2139.4,7.62459859]
[1770233100078,0.00411368,2140.5,2139.6,7.62459859]
[1770233100276,7.55756775,2140.5,2139.3,7.62459859]
[1770233100571,7.55345407,2140.4,2139.3,7.62459859]
[1770233100773,8.02045407,2141.1,2139.6,7.62459859]
[1770233100977,40.10347562,2141.6,2140.5,7.62459859]
[1770233101177,40.10347562,2141.8,2140.7,0.23403]
[1770233101377,8.02045407,2141.9,2140.8,7.62459859]
[1770233101873,0.47157171,2141.9,2140.8,7.62871226]
[1770233102074,47.65692969,2142.6,2141.1,7.62459859]
[1770233102278,0.467,2142.8,2141.7,7.62459859]
[1770233102975,0.47044497,2142.8,2141.9,7.62459859]
[1770233103778,0.47044497,2142.8,2142.0,0.9337]
[1770233103979,7.55345407,2142.7,2141.2,7.62459859]
[1770233104281,7.55345407,2142.1,2140.9,7.62459859]
[1770233105076,7.55345407,2142.0,2140.9,7.62459859]
[1770233105284,47.65692969,2142.0,2141.0,0.9333]
[1770233105576,7.55345407,2141.9,2141.0,0.9333]
[1770233105778,7.55345407,2141.8,2141.0,0.75926427]
[1770233106574,7.55345407,2141.7,2141.0,0.75926427]
[1770233107181,7.55345407,2141.6,2141.0,0.75926427]
[1770233107480,7.55345407,2141.6,2140.8,7.62871226]
[1770233107481,40.10347562,2141.6,2140.8,7.62871226]
[1770233107778,7.33619298,2141.9,2140.8,7.62871226]
[1770233107779,0.467,2141.9,2140.8,7.86273226]
[1770233108476,7.55345407,2142.3,2141.0,7.62459859]
[1770233108677,7.55345407,2141.8,2140.2,7.62459859]
[1770233108882,47.65692969,2141.3,2140.2,7.62459859]
[1770233109076,7.55345407,2141.3,2140.2,7.62459859]
[1770233109283,47.65692969,2141.6,2140.2,7.85867859]
[1770233109481,0.467,2141.8,2140.5,7.62459859]
[1770233109784,0.00378591,2141.8,2141.1,7.62459859]
[1770233111175,7.55345407,2142.3,2141.1,7.62459859]
[1770233111382,22.46814527,2144.8,2141.1,7.62459859]
[1770233111383,47.65692969,2142.9,2141.6,7.62459859]
[1770233111679,40.10347562,2143.0,2141.8,7.62459859]
[1770233111874,7.55345407,2142.9,2141.4,7.62459859]
[1770233112077,7.55345407,2142.6,2141.4,7.62459859]
[1770233112276,7.55345407,2142.5,2141.4,7.62459859]
[1770233112687,7.55345407,2142.4,2141.4,7.62459859]
[1770233112879,47.65692969,2142.4,2141.4,7.62459859]
[1770233113080,47.65692969,2142.2,2141.1,0.467]
[1770233113480,47.65692969,2142.2,2141.1,8.09159859]
[1770233113684,7.55345407,2142.1,2141.1,8.09159859]
[1770233114586,40.10347562,2142.3,2141.1,8.09159859]
[1770233114786,7.55345407,2142.5,2141.1,8.32558859]
[1770233115085,47.66206731,2142.9,2141.5,7.62459859]
[1770233115282,0.00513762,2142.9,2141.5,7.62459859]
[1770233115486,0.00513762,2142.9,2141.4,1.0762]
[1770233115487,0.00513762,2142.9,2141.9,7.85849859]
[1770233116684,0.00513762,2142.9,2141.9,7.62459859]
[1770233116886,0.00513762,2142.9,2142.1,7.62459859]
[1770233117191,0.00513762,2142.9,2142.1,7.62832774]
[1770233117688,40.10347562,2143.7,2142.4,7.85843859]
[1770233117986,40.10347562,2144.0,2142.6,7.62459859]
[1770233118181,7.55345407,2143.9,2142.6,7.62459859]
[1770233118382,7.55345407,2143.7,2142.6,7.62459859]
[1770233118781,7.55896179,2143.7,2142.2,7.62459859]
[1770233118979,7.55345407,2143.5,2142.2,7.62459859]
[1770233119383,7.55345407,2143.5,2142.1,0.47072915]
[1770233119584,7.78718407,2143.5,2142.1,0.00372915]
[1770233119784,7.78718407,2143.5,2141.6,7.62459859]
[1770233119785,7.55345407,2143.1,2141.6,7.62459859]
[1770233120890,7.55345407,2143.1,2141.6,7.62939677]
[1770233121089,7.55345407,2143.1,2141.8,7.85850859]
[1770233121490,7.55345407,2143.5,2142.0,7.85848859]
[1770233121693,7.55345407,2143.5,2142.0,7.62459859]
[1770233123295,7.78720407,2143.3,2141.7,7.62459859]
[1770233123495,7.55345407,2143.1,2141.7,7.62459859]
[1770233124695,45.73251248,2143.2,2141.6,0.00479818]
[1770233124696,7.30885092,2142.8,2141.6,0.00479818]
[1770233125094,7.30885092,2142.8,2141.6,7.14596236]
[1770233125296,40.10347562,2143.2,2141.8,0.23391]
[1770233125496,7.30885092,2143.1,2141.9,7.14116418]
[1770233128798,47.41232654,2143.5,2141.9,7.37506418]
[1770233128992,7.30885092,2143.3,2141.9,7.37506418]
[1770233129494,7.30885092,2143.1,2141.6,7.14596236]
[1770233129697,7.30885092,2142.8,2141.6,7.14596236]
[1770233130692,7.54265092,2142.8,2141.6,7.14596236]
[1770233131500,7.30885092,2142.6,2141.6,0.00479818]
[1770233131694,7.30885092,2142.4,2141.6,0.00479818]
[1770233132993,40.57047562,2142.7,2141.6,7.14596236]
[1770233132994,0.467,2142.7,2141.6,7.14596236]
[1770233134203,7.30885092,2143.4,2142.1,7.14116418]
[1770233134801,7.30885092,2143.2,2141.7,7.14116418]
[1770233136705,7.30885092,2142.8,2141.6,0.00479818]
[1770233137102,7.54266092,2142.8,2141.6,0.00479818]
[1770233137302,7.30885092,2142.7,2141.6,0.00479818]
[1770233138408,7.30885092,2142.7,2141.6,7.14596236]
[1770233138806,7.30885092,2142.7,2141.6,0.00479818]
[1770233139307,7.30885092,2142.7,2141.6,7.14596236]
[1770233139807,7.30885092,2142.7,2141.6,0.00479818]
[1770233139808,7.30885092,2142.4,2141.6,0.00479818]
[1770233140007,7.30885092,2142.4,2141.3,7.14116418]
[1770233140207,7.30885092,2142.3,2141.0,7.14116418]
[1770233140407,7.30885092,2142.2,2141.0,7.14116418]
[1770233140703,7.30885092,2142.1,2141.0,7.14116418]
[1770233141101,7.31282482,2142.1,2141.0,7.14613209]
[1770233141708,7.30885092,2141.8,2140.7,7.14116418]
[1770233142103,40.10347562,2142.0,2140.7,7.14116418]
[1770233142408,7.30885092,2142.0,2140.7,7.14116418]
[1770233142608,7.30885092,2141.9,2140.7,7.14116418]
[1770233143304,7.30885092,2141.5,2140.1,7.14116418]
[1770233143607,7.30885092,2141.1,2140.1,7.14116418]
[1770233144103,7.30885092,2140.7,2139.4,7.14116418]
[1770233146307,2.28101145,2140.9,2139.1,7.14116418]
[1770233146308,7.30885092,2140.4,2139.1,7.14116418]
[1770233146512,7.312914,2140.4,2139.1,7.14116418]
[1770233147307,7.30885092,2140.2,2139.1,7.14116418]
[1770233147507,7.30885092,2140.0,2138.8,7.14116418]
[1770233148010,7.77585092,2140.3,2138.8,7.14116418]
[1770233148909,7.30885092,2140.0,2138.8,7.14116418]
[1770233149609,7.30885092,2139.6,2138.5,7.14116418]
[1770233150407,7.30885092,2139.6,2137.9,0.23434]
[1770233150408,7.30885092,2139.6,2138.0,7.14116418]
[1770233150605,7.30885092,2139.6,2138.0,7.37549418]
[1770233150810,7.30885092,2139.6,2138.2,7.14116418]
[1770233151308,7.30885092,2139.6,2138.2,7.37547418]
[1770233151513,7.30885092,2139.6,2137.9,1.07797]
[1770233151514,7.30885092,2140.0,2138.5,7.14116418]
[1770233151812,2.28101145,2139.7,2138.5,7.14116418]
[1770233152014,7.30885092,2139.6,2138.5,7.14116418]
[1770233152418,0.2341,2140.1,2138.5,7.14116418]
[1770233152419,2.51511145,2140.1,2138.5,7.14116418]
[1770233152712,7.30885092,2140.0,2138.5,7.14116418]
[1770233152912,7.54296092,2140.0,2138.5,7.14116418]
[1770233156315,7.30885092,2140.0,2138.5,7.14116418]
[1770233157212,7.67481103,2139.6,2138.5,7.14116418]
[1770233157913,7.67481103,2139.6,2138.2,7.18707575]
[1770233160420,7.36614314,2138.8,2137.4,0.23439]
[1770233160616,7.36614314,2138.4,2137.5,7.36203482]
[1770233160821,7.36614314,2138.3,2137.0,7.36203482]
[1770233161913,7.36614314,2137.9,2136.5,7.36203482]
[1770233162114,7.60049314,2137.9,2136.5,7.36203482]
[1770233163019,7.83414314,2138.2,2136.5,7.59652482]
[1770233163922,8.06845314,2138.2,2136.5,7.59652482]
[1770233164122,7.60047314,2138.0,2136.5,7.36203482]
[1770233164318,7.36614314,2137.8,2136.5,7.36203482]
[1770233165219,7.36614314,2137.3,2135.5,7.36203482]
[1770233165423,0.00442501,2137.3,2136.2,7.36203482]
[1770233165623,7.36614314,2138.0,2136.4,7.59653482]
[1770233166024,7.36614314,2138.0,2136.4,7.36203482]
[1770233166626,0.00586597,2138.0,2136.6,7.36203482]
[1770233167025,7.37200911,2138.0,2136.6,7.36203482]
[1770233167525,0.00586597,2138.0,2136.6,7.36203482]
[1770233167724,0.00586597,2138.0,2136.8,7.59649482]
[1770233169126,0.00586597,2138.0,2136.8,7.36203482]
[1770233169626,7.37200911,2138.0,2136.8,7.36203482]
[1770233170028,7.36614314,2137.9,2136.8,7.36203482]
[1770233170223,0.00586597,2138.0,2136.8,7.36203482]
[1770233170918,0.00586597,2138.0,2137.0,7.36203482]
[1770233171124,0.00586597,2138.0,2137.0,7.36709434]
[1770233172724,7.37200911,2138.0,2137.0,7.36709434]
[1770233173228,4.12959918,2137.9,2137.0,7.36709434]
[1770233173528,7.36614314,2137.9,2137.0,7.36709434]
[1770233174329,0.00586597,2138.0,2137.0,7.36709434]
[1770233174533,4.13562621,2137.9,2137.0,7.36709434]
[1770233174731,0.00586597,2138.0,2137.0,7.36709434]
[1770233175130,4.13641633,2137.9,2137.0,7.36709434]
[1770233175334,0.00586597,2138.0,2137.0,7.36709434]
[1770233175732,0.00586597,2138.0,2137.2,7.36203482]
[1770233176027,7.37200911,2138.0,2137.0,0.00505952]
[1770233176332,7.36614314,2137.9,2137.0,0.00505952]
[1770233176631,4.12903585,2137.8,2137.0,0.00505952]
[1770233176931,4.12903585,2137.7,2137.0,7.36709434]
[1770233177135,4.12470016,2137.6,2136.4,7.36203482]
[1770233177334,4.12470016,2137.5,2136.4,7.59653482]
[1770233177536,0.00586597,2138.0,2136.9,7.36203482]
[1770233177829,7.36614314,2137.9,2136.9,7.36203482]
[1770233178035,4.12686141,2137.8,2136.9,7.36203482]
[1770233178335,7.36614314,2137.6,2136.9,0.00499365]
[1770233178532,4.12686141,2137.5,2136.9,0.00499365]
[1770233178732,4.12686141,2137.4,2136.9,0.00499365]
[1770233178932,4.12686141,2137.3,2136.9,0.00499365]
[1770233179233,4.1214626,2137.2,2136.9,0.00499365]
[1770233179527,4.11893895,2137.1,2136.0,7.36203482]
[1770233179734,4.11893895,2137.0,2136.0,7.36203482]
[1770233179934,47.46961876,2137.3,2136.0,7.36203482]
[1770233180235,4.12406588,2137.2,2136.0,7.59657482]
[1770233180535,4.10798402,2137.1,2136.0,7.59657482]
[1770233180734,47.46961876,2137.4,2136.0,7.59657482]
[1770233181036,4.10690937,2137.3,2136.0,7.59657482]
[1770233181235,4.10690937,2137.2,2136.0,7.59657482]
[1770233181430,7.36614314,2137.4,2136.2,7.36203482]
[1770233181636,4.10573294,2137.3,2136.2,7.59655482]
[1770233181833,40.10347562,2137.5,2136.2,7.59655482]
[1770233182033,47.46961876,2137.5,2136.2,7.59655482]
[1770233182235,4.10215712,2137.4,2136.2,7.59655482]
[1770233182428,4.10215712,2137.3,2136.2,7.59655482]
[1770233182632,4.10215712,2137.2,2136.2,7.59655482]
[1770233182835,47.46961876,2137.5,2136.2,7.59655482]
[1770233183034,4.10273128,2137.4,2136.2,7.59655482]
[1770233183233,40.10347562,2137.7,2136.4,7.59653482]
[1770233183436,44.20888248,2137.7,2136.4,7.59653482]
[1770233183739,4.10540686,2137.6,2136.4,7.59653482]
[1770233183936,4.10540686,2137.5,2136.4,7.59653482]
[1770233184132,40.10347562,2137.8,2136.8,7.48540253]
[1770233184331,47.50296986,2138.0,2136.8,7.48540253]
[1770233184535,4.10803818,2137.9,2136.9,8.42130253]
[1770233184736,47.49710389,2137.9,2136.9,8.42130253]
[1770233184932,4.10803818,2137.8,2136.9,8.42130253]
[1770233185131,45.50461845,2138.0,2136.9,8.42130253]
[1770233185132,4.10803818,2137.7,2136.9,8.42130253]
[1770233185431,4.10803818,2137.6,2136.9,8.42130253]
[1770233185739,40.10347562,2137.9,2136.9,8.42130253]
[1770233186040,4.10568752,2137.8,2136.9,8.42130253]
[1770233186230,51.60279141,2137.9,2136.9,8.42130253]
[1770233186434,44.20916314,2137.8,2136.9,8.42130253]
[1770233186831,11.49931579,2137.7,2136.9,0.9359]
[1770233187037,7.39362827,2137.5,2136.9,0.9359]
[1770233187242,40.10347562,2137.1,2136.2,7.48540253]
[1770233188240,44.21466117,2137.0,2136.2,7.48540253]
[1770233188442,40.10347562,2136.7,2135.9,7.48540253]
[1770233188642,44.21466117,2136.7,2135.9,7.48540253]
[1770233189041,4.11118555,2136.6,2135.9,7.48540253]
[1770233189238,40.10347562,2137.1,2135.9,7.48540253]
[1770233189442,44.22444997,2137.1,2135.9,7.48540253]
[1770233189640,4.12097435,2137.0,2136.3,7.48540253]
[1770233189942,40.10347562,2137.4,2136.3,7.48540253]
[1770233190335,4.12202795,2137.3,2136.3,7.71991253]
[1770233190535,4.12202795,2137.2,2136.3,7.71991253]
[1770233190735,5.39527686,2137.6,2136.7,1.07859]
[1770233191036,0.00586597,2138.0,2137.2,0.23441]
[1770233191343,0.00586597,2138.0,2136.8,0.23446]
[1770233191644,0.00586597,2138.0,2137.1,0.23443]
[1770233191939,7.71396437,2138.0,2136.7,0.24108437]
[1770233192139,7.71396437,2138.0,2136.8,0.00662437]
[1770233192642,7.71396437,2138.0,2136.7,0.23446]
[1770233192843,7.70478621,2137.8,2136.7,0.23446]
[1770233193038,7.70478621,2137.8,2136.3,0.00662437]
[1770233193241,7.70478621,2137.7,2136.3,0.00662437]
[1770233193442,7.70478621,2137.7,2136.4,0.00662437]
[1770233193940,7.76065218,2138.0,2136.7,2.80078267]
[1770233194140,7.76065218,2138.0,2136.4,2.80078267]
[1770233194336,7.7080984,2137.9,2136.4,0.2345]
[1770233194638,7.7080984,2137.3,2136.2,2.80078267]
[1770233195237,7.7080984,2137.9,2136.4,0.2345]
[1770233195442,7.7080984,2137.7,2136.4,0.2345]
[1770233195639,7.7080984,2137.6,2136.4,0.2345]
[1770233195845,7.7080984,2137.5,2136.4,0.2345]
[1770233196240,7.7080984,2137.5,2136.2,2.80078267]
[1770233196546,7.7080984,2137.3,2136.1,2.80078267]
[1770233196742,0.29020597,2138.0,2136.1,2.80078267]
[1770233196743,7.76396437,2138.0,2136.5,2.80078267]
[1770233196943,7.76396437,2138.0,2136.7,0.23447]
[1770233197343,7.7080984,2137.8,2136.5,2.80078267]
[1770233197547,7.7080984,2137.6,2136.4,2.80078267]
[1770233198147,0.05586597,2138.0,2136.4,2.80078267]
[1770233198148,7.7080984,2137.9,2136.8,0.23445]
[1770233198438,0.05586597,2138.0,2137.2,0.23442]
[1770233199043,7.76396437,2138.0,2137.2,0.23442]
[1770233199640,0.05586597,2138.0,2137.4,0.23439]
[1770233200438,7.7080984,2139.2,2137.6,1.07812]
[1770233200637,7.7080984,2139.2,2137.6,2.80078267]
[1770233200838,7.7080984,2138.7,2137.5,3.03516267]
[1770233201243,7.7080984,2138.7,2137.6,0.23437]
[1770233201446,0.00393287,2138.7,2137.9,0.23434]
[1770233202241,7.7080984,2139.0,2138.0,0.23433]
[1770233203345,7.71354749,2139.0,2138.0,0.23433]
[1770233204046,7.7080984,2138.8,2138.0,0.23433]
[1770233204844,12.3880984,2138.8,2138.0,0.23433]
[1770233205345,0.00544909,2139.0,2138.1,0.23432]
[1770233205551,7.7080984,2139.7,2138.6,0.23426]
[1770233206048,7.7080984,2139.5,2138.6,0.23426]
[1770233206750,7.71415069,2139.5,2138.6,0.23426]
[1770233207145,12.3880984,2139.2,2138.1,0.23431]
[1770233207350,7.7080984,2139.2,2138.2,0.2343]
[1770233207749,7.7080984,2138.4,2137.8,0.468]
[1770233207948,7.7080984,2138.4,2137.6,0.00432058]
[1770233208144,7.7080984,2138.0,2137.6,0.00432058]
[1770233208352,7.71278348,2138.0,2137.2,0.23441]
[1770233208553,0.00468508,2138.0,2137.1,1.07838]
[1770233208753,7.7080984,2138.6,2137.7,0.23435]
[1770233209248,12.3880984,2138.4,2137.7,0.23435]
[1770233209445,7.7080984,2138.4,2137.7,0.23435]
[1770233209648,7.7080984,2138.7,2137.8,0.23435]
[1770233209853,7.71395269,2138.7,2137.8,0.23969476]
[1770233210148,7.71395269,2138.7,2137.8,0.00534476]
[1770233210453,7.71395269,2138.7,2137.3,3.03518267]
[1770233210454,12.3880984,2138.1,2137.0,0.468]
[1770233210653,7.7080984,2138.1,2137.0,0.70244]
[1770233210854,7.7080984,2138.1,2137.1,0.23443]
[1770233211052,7.7080984,2138.1,2137.3,0.2344]
[1770233211245,7.7080984,2138.1,2137.5,0.23437]
[1770233211445,7.7080984,2138.6,2137.6,1.07813]
[1770233211650,7.7080984,2138.6,2137.5,1.07818]
[1770233211651,7.7080984,2138.6,2137.9,0.23434]
[1770233211954,7.7080984,2138.5,2137.4,0.23439]
[1770233212151,12.3880984,2138.5,2137.4,0.23439]
[1770233212353,7.7080984,2138.0,2137.4,0.23439]
[1770233212653,7.7080984,2138.3,2137.4,0.23439]
[1770233213152,7.7080984,2138.0,2137.3,0.00432004]
[1770233213554,12.3880984,2138.0,2137.3,0.00432004]
[1770233213949,12.37743489,2137.9,2137.3,0.00432004]
[1770233214249,7.69743489,2137.9,2137.3,0.00432004]
[1770233214449,0.00585429,2138.7,2137.4,1.07822]
[1770233214450,7.69743489,2138.6,2137.4,1.07822]
[1770233214651,7.69743489,2138.6,2137.8,0.23435]
[1770233214955,7.69743489,2138.6,2137.9,0.23434]
[1770233215350,12.37743489,2138.6,2137.9,0.23434]
[1770233215852,12.37743489,2138.5,2137.9,0.23434]
[1770233216149,7.69743489,2138.3,2137.4,0.23438]
[1770233216349,7.69743489,2138.1,2137.3,0.00432004]
[1770233216751,7.69743489,2137.9,2137.3,0.00432004]
[1770233217253,7.69743489,2137.5,2137.3,0.00432004]
[1770233217449,7.69743489,2137.5,2137.0,0.70244]
[1770233217651,7.69743489,2138.6,2137.0,0.70244]
[1770233217846,4.68,2138.2,2137.0,0.70244]
[1770233218050,4.68,2138.3,2137.0,0.70244]
[1770233218454,4.68,2138.1,2137.3,0.2344]
[1770233218652,5.86327686,2139.2,2137.3,0.2344]
[1770233218653,4.68,2138.0,2137.3,0.2344]
[1770233218850,0.00596345,2138.0,2137.3,0.23936217]
[1770233219050,0.468,2139.2,2137.4,0.23439]
[1770233219253,4.68,2138.8,2137.4,0.23439]
[1770233219655,4.68,2138.6,2137.4,0.23439]
[1770233219856,7.6975437,2138.5,2137.5,0.23438]
[1770233220056,7.70090905,2138.5,2137.3,0.00496217]
[1770233220258,7.70090905,2138.5,2137.7,0.23436]
[1770233220453,4.68,2137.7,2137.3,0.00496217]
[1770233220651,7.6975437,2137.3,2136.4,2.80078267]
[1770233220852,0.468,2138.3,2136.3,0.23451]
[1770233220853,7.6975437,2137.1,2136.3,0.23451]
[1770233221052,7.6975437,2137.1,2136.1,0.468]
[1770233221251,7.6975437,2137.1,2136.4,0.2345]
[1770233221452,7.6975437,2138.0,2136.8,1.07853]
[1770233221659,7.6975437,2138.0,2137.2,0.23441]
[1770233222059,12.3775437,2138.0,2137.2,0.23441]
[1770233222358,7.6975437,2138.0,2137.3,0.2344]
[1770233222558,0.00336535,2138.5,2137.5,0.23437]
[1770233222760,40.5102885,2139.7,2138.3,0.23429]
[1770233223062,40.9782885,2140.1,2138.4,0.23428]
[1770233223257,40.7444085,2139.9,2137.9,0.468]
[1770233223559,4.68,2138.2,2137.4,2.80078267]
[1770233223861,40.5102885,2139.8,2138.0,1.07793]
[1770233224053,40.5102885,2140.2,2138.3,0.23429]
[1770233224254,4.68,2139.5,2137.8,0.23435]
[1770233224456,5.39527686,2140.1,2137.7,2.80078267]
[1770233224457,40.5102885,2140.2,2138.5,0.23427]
[1770233224656,7.64036271,2140.1,2138.5,0.23427]
[1770233224860,12.32036271,2139.4,2138.3,0.468]
[1770233225060,7.64036271,2139.1,2138.4,0.23428]
[1770233225261,0.00335798,2140.1,2138.6,0.23426]
[1770233225562,4.68,2139.7,2138.6,0.23426]
[1770233225962,4.68,2139.3,2138.3,0.468]
[1770233226256,4.68,2139.4,2138.3,0.468]
[1770233226455,4.68,2139.6,2138.3,0.468]
[1770233226652,40.5102885,2140.0,2138.3,0.468]
[1770233226653,4.68,2139.8,2138.5,0.23427]
[1770233226853,4.68,2139.9,2138.5,0.23427]
[1770233227060,4.68,2139.8,2138.7,0.23424]
[1770233227261,7.64036271,2139.7,2138.7,0.23424]
[1770233227460,7.64036271,2139.6,2138.7,0.23424]
[1770233227662,7.64036271,2139.4,2138.7,0.23424]
[1770233228356,7.64036271,2139.3,2138.3,0.468]
[1770233228559,7.64036271,2139.0,2138.3,0.468]
[1770233228861,7.64036271,2139.0,2138.3,0.70229]
[1770233229062,0.00335798,2140.1,2138.4,0.23428]
[1770233229063,7.64036271,2140.0,2138.4,0.23428]
[1770233229263,7.64036271,2139.5,2138.4,4.67357451]
[1770233229566,7.64036271,2140.0,2138.8,0.23424]
[1770233230063,7.64036271,2139.7,2138.8,0.23424]
[1770233230263,7.64036271,2139.5,2138.8,0.23424]
[1770233230465,7.64036271,2139.5,2138.4,0.23428]
[1770233230763,7.64036271,2139.4,2138.4,0.23428]
[1770233231164,12.32036271,2139.4,2138.3,0.468]
[1770233231360,7.64036271,2139.0,2138.3,0.468]
[1770233231769,12.32036271,2138.8,2138.3,0.468]
[1770233231966,7.64036271,2139.1,2138.3,0.468]
[1770233232465,12.32036271,2139.0,2138.3,0.468]
[1770233232667,7.64036271,2139.0,2138.3,0.70229]
[1770233232868,0.00335798,2140.1,2138.3,4.56748913]
[1770233233169,4.68,2139.9,2138.3,7.3682718]
[1770233233368,0.00335798,2140.1,2138.5,5.17716913]
[1770233233568,0.00335798,2140.1,2138.9,0.23423]
[1770233233766,4.68,2140.0,2138.9,0.2386363]
[1770233233966,4.68,2139.8,2138.9,0.2386363]
[1770233234367,4.68,2139.7,2138.9,0.2386363]
[1770233234568,4.68,2139.8,2138.9,0.2386363]
[1770233234868,7.64036271,2139.7,2138.9,0.2386363]
[1770233235068,12.32036271,2139.7,2138.9,0.2386363]
[1770233235261,12.32036271,2139.6,2138.9,0.2386363]
[1770233235460,4.68,2139.5,2138.9,0.2386363]
[1770233235761,0.00335798,2140.1,2138.9,0.0044063]
[1770233235967,4.68,2140.0,2139.2,0.2342]
[1770233236268,4.68335798,2140.1,2139.2,0.2342]
[1770233236468,4.68,2139.9,2139.2,0.2342]
[1770233236871,4.68,2139.8,2139.3,0.23419]
[1770233237169,0.00335798,2140.1,2139.3,0.23419]
[1770233237372,40.5102885,2141.2,2139.7,0.23414]
[1770233237667,6.86919298,2141.6,2139.7,0.23414]
[1770233237668,4.18326798,2140.6,2139.7,0.23414]
[1770233237870,7.64036271,2140.7,2139.7,0.23414]
[1770233238263,7.64036271,2140.4,2139.7,0.23414]
[1770233238465,7.64036271,2140.4,2139.3,7.06413229]
[1770233238466,7.64375692,2140.4,2139.3,0.468]
[1770233238665,7.64036271,2139.9,2139.3,0.468]
[1770233239065,4.18326798,2139.8,2139.3,0.468]
[1770233239272,7.64036271,2139.9,2139.3,0.468]
[1770233239568,7.64036271,2139.6,2139.3,0.468]
[1770233239773,7.64036271,2139.6,2138.9,0.0044063]
[1770233240071,11.82363069,2139.4,2138.9,0.0044063]
[1770233240266,7.64036271,2139.3,2138.9,0.0044063]
[1770233240473,7.64036271,2139.3,2138.1,4.20010123]
[1770233240474,7.64036271,2139.3,2138.3,0.23429]
[1770233240768,7.64036271,2139.2,2138.3,0.23429]
[1770233240973,0.23409,2140.3,2138.3,0.23429]
[1770233240974,7.64036271,2139.1,2138.3,0.23429]
[1770233241572,11.82363069,2139.0,2138.3,0.23932521]
[1770233241769,7.64036271,2139.4,2138.6,0.23425]
[1770233242075,7.64036271,2139.4,2138.8,0.23424]
[1770233242474,4.18326798,2139.2,2138.8,0.23424]
[1770233242672,7.64036271,2139.3,2138.8,0.23424]
[1770233242872,4.18326798,2139.2,2138.8,0.23424]
[1770233243473,4.18326798,2139.1,2138.8,0.23424]
[1770233243672,3.69920798,2139.2,2138.8,0.23424]
[1770233243873,10.98771423,2139.2,2138.3,6.97275612]
[1770233244070,7.28850625,2139.8,2138.8,7.83213227]
[1770233244369,7.28850625,2139.8,2139.3,0.23418]
[1770233244774,3.69920798,2139.6,2138.8,7.45684227]
[1770233244973,7.28850625,2139.8,2138.8,7.45684227]
[1770233245166,7.28850625,2139.8,2138.8,0.70224]
[1770233245372,7.28850625,2139.4,2138.8,0.70224]
[1770233245571,7.28850625,2139.3,2138.8,0.70224]
[1770233245967,7.28850625,2138.9,2138.3,0.23932521]
[1770233246176,7.29244816,2138.9,2138.3,0.23932521]
[1770233246371,10.99165614,2138.9,2138.3,0.23932521]
[1770233246569,3.69920798,2138.6,2138.3,0.23932521]
[1770233246775,3.69920798,2138.7,2138.3,0.23932521]
[1770233247172,3.69920798,2138.6,2138.0,0.468]
[1770233247378,10.99165614,2138.9,2138.0,0.468]
[1770233247572,7.29244816,2138.9,2138.0,0.468]
[1770233247877,10.98771423,2138.8,2138.0,0.468]
[1770233248074,7.28850625,2138.8,2138.0,0.468]
[1770233248269,10.98771423,2138.8,2138.0,0.47197862]
[1770233248473,10.98771423,2138.6,2138.3,0.23429]
[1770233248669,3.21548798,2138.3,2138.0,0.47197862]
[1770233248870,7.29244816,2138.9,2138.0,0.47197862]
[1770233249069,10.50399423,2138.8,2138.0,0.47197862]
[1770233249271,7.28850625,2139.9,2138.2,7.91766612]
[1770233249475,7.28850625,2139.6,2139.0,0.23422]
[1770233249674,7.28850625,2139.6,2138.5,0.23427]
[1770233249977,2.71669798,2139.4,2138.7,0.23424]
[1770233250182,2.71669798,2139.2,2138.7,0.23424]
[1770233250482,0.0036502,2139.2,2138.7,0.23424]
[1770233250680,2.24869798,2138.8,2138.3,0.23429]
[1770233250979,2.24869798,2139.0,2138.4,0.23428]
[1770233251175,0.0036502,2139.2,2138.5,0.23426]
[1770233251573,2.24869798,2139.1,2138.5,0.23426]
[1770233251976,9.53720423,2139.0,2138.5,0.23426]
[1770233252282,7.28850625,2139.0,2138.5,0.23426]
[1770233252575,9.53720423,2138.6,2138.0,3.48709581]
[1770233252780,7.28850625,2138.6,2138.0,3.48709581]
[1770233252979,9.53720423,2138.6,2138.1,0.23431]
[1770233253481,2.24869798,2138.5,2138.1,0.23431]
[1770233253678,1.76888798,2138.5,2138.1,0.23431]
[1770233253886,7.28850625,2138.9,2138.1,3.01509719]
[1770233254586,7.29215645,2139.2,2138.5,2.78078719]
[1770233254780,7.29215645,2139.2,2138.6,2.78078719]
[1770233254986,7.29215645,2139.2,2138.7,0.23425]
[1770233255478,7.29215645,2139.2,2138.3,0.2343]
[1770233255984,7.29215645,2139.2,2138.1,2.78078719]
[1770233256180,7.29215645,2139.2,2138.0,0.47197862]
[1770233256883,7.29215645,2139.2,2138.1,0.23431]
[1770233257088,7.29215645,2139.2,2138.0,3.25276581]
[1770233257587,7.29215645,2139.2,2138.3,0.23429]
[1770233258187,7.29215645,2139.2,2138.0,0.47197862]
[1770233258684,7.29215645,2139.2,2138.1,0.23432]
[1770233259084,7.29215645,2139.2,2138.0,0.47197862]
[1770233259688,7.28850625,2139.1,2137.5,2.78078719]
[1770233259889,7.28850625,2138.9,2137.4,0.70238]
[1770233260087,7.28850625,2138.9,2137.4,0.468]
[1770233260088,7.28850625,2138.7,2137.4,0.468]
[1770233260789,7.28850625,2138.7,2137.4,0.47326698]
[1770233261088,7.28850625,2138.6,2137.4,0.47326698]
[1770233261489,7.28850625,2138.6,2136.7,0.23447]
[1770233261490,7.28850625,2138.3,2136.7,0.23447]
[1770233261789,7.28850625,2138.0,2136.7,0.23447]
[1770233262487,7.28850625,2138.0,2136.7,0.23903696]
[1770233262883,7.28850625,2138.0,2136.7,7.23807468]
[1770233263284,7.28850625,2138.0,2137.0,0.23443]
[1770233264291,7.28850625,2138.0,2136.7,0.00456696]
[1770233264688,7.28850625,2138.0,2136.9,0.23444]
[1770233267488,7.28850625,2138.0,2136.2,2.78078719]
[1770233267687,7.28850625,2138.0,2136.3,0.2345]
[1770233267891,7.28850625,2138.0,2136.1,7.70150772]
[1770233268093,7.28850625,2138.0,2136.4,0.2345]
[1770233268498,7.28850625,2138.0,2136.4,0.23828373]
[1770233268898,7.28850625,2137.9,2136.4,0.23828373]
[1770233269700,7.28850625,2137.9,2136.6,0.23447]
[1770233270098,7.28850625,2137.9,2136.8,0.23446]
[1770233270299,7.28850625,2137.9,2136.9,0.23445]
[1770233272096,7.28850625,2137.9,2136.4,0.23828373]
[1770233272397,7.28850625,2137.9,2136.7,7.23350772]
[1770233272896,7.28850625,2137.9,2137.1,0.23442]
[1770233273601,7.28850625,2137.9,2137.2,0.23441]